[Event "German Bundesliga 2023-24"]
[Site "Germany"]
[Date "2024.02.24"]
[Round "10.9"]
[White "Shevchenko, Kirill"]
[Black "Eljanov, Pavel"]
[Result "1/2-1/2"]
[ECO "C90"]
[WhiteElo "2651"]
[BlackElo "2695"]
[Annotator "TA"]
[PlyCount "116"]
[EventDate "2023.10.20"]
[EventType "team-tourn"]
[EventCountry "GER"]
[SourceTitle "playchess.com"]
[Source "ChessBase"]
[SourceQuality "1"]
[TimeControl "40/6000+30:3000+30"]

{[%evp 38,116,12,12,10,8,4,11,11,8,6,8,9,6,6,6,6,5,5,5,8,8,6,5,7,0,0,0,0,0,0,0,0,0,0,0,0,0,0,0,0,0,0,0,0,0,0,0,0,0,0,0,0,0,0,0,0,0,0,0,0,0,10,10,12,0,0,0,0,0,0,0,0,0,0,0,0,0,0,0,0]} 1. e4 {[%emt 0:00:04]} e5 {[%emt 0:00:06]} 2. Nf3 {[%emt 0:00:04]} Nc6 {[%emt 0:00:04]} 3. Bb5 {[%emt 0:00:08]} a6 {[%emt 0:00:21]} 4. Ba4 {[%emt 0:00:06]} Nf6 {[%emt 0:00:04]} 5. O-O {[%emt 0:00:06]} Be7 {[%emt 0:00:03]} 6. Re1 {[%emt 0:00:19]} b5 {[%emt 0:00:06]} 7. Bb3 {[%emt 0:00:02]} O-O {[%emt 0:00:06]} 8. a4 {[%emt 0:00:02]} b4 {[%emt 0:00:37]} 9. a5 {[%emt 0:00:19]} d6 {[%emt 0:00:35]} 10. c3 {[%emt 0:00:06] The modern move.} Rb8 {[%emt 0:02:34]} 11. Bc4 {[%emt 0:00:11]} Bg4 {[%emt 0:01:12] C90: Closed Ruy Lopez with 7...d6: Early deviations.} 12. h3 {[%emt 0:01:23]} Bh5 {[%emt 0:00:00]} 13. Bxa6 {[%emt 0:00:43]} d5 {[%emt 0:05:50]} 14. exd5 {[%emt 0:00:44]} Qxd5 {[%emt 0:00:18]} 15. d3 {[%emt 0:00:20]} Bxf3 {[%emt 0:02:16]} 16. Qxf3 {[%emt 0:00:18]} Qxf3 {[%emt 0:00:06]} 17. gxf3 {[%emt 0:00:06]} bxc3 {[%emt 0:01:46]} 18. bxc3 {[%emt 0:06:41]} Ra8 {[%emt 0:00:40]} 19. Bb7 {[%emt 0:09:22]} Rxa5 {[%emt 0:00:05]} 20. Rxa5 {[%emt 0:00:48]} Nxa5 {[%emt 0:00:05]} 21. Rxe5 {[%emt 0:00:14]} Nxb7 {[%emt 0:00:06]} 22. Rxe7 {[%emt 0:00:03]} Nc5 {[%emt 0:00:20]} 23. Rxc7 {[%emt 0:07:00]} Nxd3 {[%emt 0:00:12]} 24. Be3 {[%emt 0:02:11]} Nd5 {[%emt 0:03:34]} 25. Rd7 {[%emt 0:02:34]} Nxe3 {[%emt 0:01:02]} 26. Rxd3 {[%emt 0:01:48]} Nc4 {[%emt 0:01:18]} 27. Nd2 {[%emt 0:00:27]} Nxd2 {[%emt 0:01:32]} 28. Rxd2 {[%emt 0:00:07]} Ra8 {[%emt 0:01:32]} 29. Kg2 {[%emt 0:06:54]} Kf8 {[%emt 0:00:34]} 30. c4 {[%emt 0:00:43]} Ke7 {[%emt 0:01:47]} 31. Kg3 {[%emt 0:04:14]} Ra3 {[%emt 0:02:53]} 32. Re2+ $146 {[%emt 0:00:31]} ({Predecessor:} 32. Rd4 Rc3 33. h4 h5 34. Re4+ Kd6 35. Kf4 g6 36. Kg3 Kd7 37. Kg2 Kd6 38. f4 {½-½ Moussard,J (2672)-Harikrishna,P (2720) Olympiad-44 Chennai 2022 (4.1)}) 32... Kd7 {[%emt 0:00:14]} 33. h4 {[%emt 0:01:38]} Rc3 {[%emt 0:02:21]} 34. Re4 {[%emt 0:00:07]} h5 {[%emt 0:07:38]} 35. Kf4 {[%emt 0:01:08]} f6 {[%emt 0:00:32]} 36. Rd4+ {[%emt 0:02:49]} Ke6 {[%emt 0:00:20]} 37. Ke4 {[%emt 0:00:47]} g6 {[%emt 0:00:47]} 38. Kf4 {[%emt 0:01:09]} Ke7 {[%emt 0:01:37]} 39. Re4+ {[%emt 0:00:55]} Kf7 {[%emt 0:04:15]} 40. Kg3 {[%emt 0:00:06]} g5 {[%emt 0:00:22]} 41. Kg2 {[%emt 0:50:54]} Kg6 {[%emt 0:50:08]} 42. hxg5 {[%emt 0:00:26]} Kxg5 {[%emt 0:07:06]} 43. Kg3 {[%emt 0:00:22]} Rc1 {[%emt 0:01:20]} 44. Rd4 {[%emt 0:01:09]} Rg1+ {[%emt 0:00:11]} 45. Kh2 {[%emt 0:00:06]} Rc1 {[%emt 0:00:12]} 46. Kg2 {[%emt 0:00:06]} f5 {[%emt 0:11:24]} 47. Kg3 {[%emt 0:01:24]} Rg1+ {[%emt 0:00:11]} 48. Kh2 {[%emt 0:00:07]} Rc1 {[%emt 0:00:25]} 49. Kg2 {[%emt 0:00:03]} Rc3 {[%emt 0:00:44]} 50. Kg3 {[%emt 0:00:13]} Ra3 {[%emt 0:01:32]} 51. Rd8 {[%emt 0:02:23]} h4+ {[%emt 0:01:15]} 52. Kg2 {[%emt 0:00:49]} Rc3 {[%emt 0:02:30]} 53. Rc8 {[%emt 0:01:45]} Kf4 {[%emt 0:00:11]} 54. Rh8 {[%emt 0:00:04]} Kg5 {[%emt 0:00:11]} 55. f4+ {[%emt 0:00:20]} Kxf4 {[%emt 0:02:18]} 56. Rxh4+ {[%emt 0:00:47]} Ke5 {[%emt 0:00:11]} 57. f3 {[%emt 0:00:23]} Rc1 {[%emt 0:00:46]} 58. Kf2 {[%emt 0:00:36]} f4 {[%emt 0:00:13]} 1/2-1/2

[Event "German Bundesliga 2023-24"]
[Site "Germany"]
[Date "2024.02.24"]
[Round "10.10"]
[White "Shengelia, David"]
[Black "Ivic, Velimir"]
[Result "0-1"]
[ECO "D05"]
[WhiteElo "2494"]
[BlackElo "2557"]
[Annotator "TA"]
[PlyCount "112"]
[EventDate "2023.10.20"]
[EventType "team-tourn"]
[EventCountry "GER"]
[SourceTitle "playchess.com"]
[Source "ChessBase"]
[SourceQuality "1"]
[TimeControl "40/6000+30:3000+30"]

{[%evp 13,112,0,0,0,6,11,18,0,31,0,0,-21,-3,-16,22,-22,-23,-24,-19,-28,-22,-31,0,0,0,0,0,-31,-29,-31,-35,-28,-28,-28,-24,-86,-89,-56,-54,-85,-80,-78,-18,-13,0,0,0,-135,-130,-137,-102,-108,-86,-458,-472,-458,-422,-431,-431,-437,-437,-439,-261,-431,-431,-431,-232,-242,-225,-246,-241,-239,-239,-222,-236,-236,-223,-191,-191,-885,-847,-1094,-1079,-1090,-1089,-1078,-1067,-834,-815,-1611,-1735,-4706,-4710,-29950,-29943,-29944,-12832,-12819,-12805,-6074,-5061]} 1. d4 {[%emt 0:00:05]} d5 {[%emt 0:00:17]} 2. Nf3 {[%emt 0:00:17]} Nf6 {[%emt 0:00:33]} 3. e3 {[%emt 0:01:41]} e6 {[%emt 0:01:57]} 4. b3 {[%emt 0:03:24]} Bd6 {[%emt 0:01:19]} 5. Bd3 {[%emt 0:00:28]} b6 {[%emt 0:06:47]} 6. O-O {[%emt 0:02:28]} O-O {[%emt 0:00:16]} 7. Bb2 {[%emt 0:09:19]} Bb7 {[%emt 0:02:03]} 8. Nbd2 {[%emt 0:02:38]} c5 {[%emt 0:03:16]} 9. dxc5 {[%emt 0:13:13]} bxc5 {[%emt 0:05:09]} 10. Re1 {[%emt 0:03:00] The position is equal.} Nc6 {[%emt 0:06:31]} 11. e4 {[%emt 0:01:23]} Bc7 {[%emt 0:11:33]} 12. a3 {[%emt 0:28:25]} Rb8 {[%emt 0:10:26]} 13. Qe2 {[%emt 0:14:02]} d4 {[%emt 0:15:26]} 14. e5 {[%emt 0:02:48]} Nd7 {[%emt 0:02:06]} 15. Nc4 {[%emt 0:01:28]} Na5 {[%emt 0:01:43]} 16. Nfd2 {[%emt 0:05:09]} Bd5 {[%emt 0:03:09]} 17. f4 {[%emt 0:04:26]} Qe7 {[%emt 0:02:36]} (17... f6 {with more complications.} 18. exf6 Bxf4 19. fxg7 Rf7) 18. Rf1 {[%emt 0:05:41]} g6 {[%emt 0:03:54]} 19. Nxa5 {[%emt 0:02:18]} Bxa5 {[%emt 0:00:05]} 20. Nc4 {[%emt 0:00:24]} Bxc4 {[%emt 0:02:21]} 21. Bxc4 {[%emt 0:00:05]} Nb6 {[%emt 0:00:09]} 22. Rf3 {[%emt 0:01:40]} Rfd8 {[%emt 0:06:21]} 23. Raf1 {[%emt 0:00:28] [#]} Bd2 $1 {[%emt 0:01:20]} 24. Bc1 {[%emt 0:05:28]} (24. Ba6 $11 Be3+ 25. Kh1) (24. Bb5 Be3+) 24... Bxc1 $17 25. Rxc1 {[%emt 0:00:01]} a5 {[%emt 0:02:05]} 26. g4 {[%emt 0:02:13]} a4 {[%emt 0:01:56]} 27. Rcf1 {[%emt 0:00:44]} Nd5 {[%emt 0:05:03]} (27... Qh4 $17 28. h3 Nxc4 29. Qxc4 axb3 30. cxb3 h5 31. gxh5 Qxh5) 28. f5 $11 {[%emt 0:00:34]} (28. Bxd5 {simplifies} Rxd5 29. bxa4 Ra8 30. Qc4) 28... Qg5 {[%emt 0:02:59]} (28... Ne3 {seems wilder.} 29. fxe6 fxe6 30. Rf7 Qh4) 29. fxe6 {[%emt 0:00:18]} fxe6 {[%emt 0:00:09]} 30. Rf6 {[%emt 0:00:29]} Nxf6 $17 {[%emt 0:01:07]} 31. Bxe6+ {[%emt 0:00:08]} Kh8 {[%emt 0:00:28]} 32. exf6 {[%emt 0:00:05]} axb3 {[%emt 0:02:11]} 33. cxb3 {[%emt 0:00:10][%mdl 8192] Now White is beyond hope.} (33. h4 $17 {is tougher.} Qe3+ (33... Qxh4 34. Qe5 $15) 34. Qxe3 dxe3 35. cxb3) 33... d3 $19 {[%emt 0:02:38]} 34. Qf3 {[%emt 0:01:53]} d2 {[%emt 0:03:11]} 35. f7 {[%emt 0:00:09]} Qe5 {[%emt 0:02:04] Against Qc3} 36. Bc4 {[%emt 0:00:22]} Kg7 {[%emt 0:00:44] ...Kf8 would now be deadly.} 37. Kg2 {[%emt 0:00:15]} Qd4 {[%emt 0:02:18]} (37... Kf8 $142 38. Rd1 Rd4) 38. g5 $2 {[%emt 0:00:16]} (38. h3) 38... Kf8 {[%emt 0:01:03] Active counter play!} (38... d1=B 39. Rxd1 Qb2+ 40. Kh3 Rxd1 41. Qxd1 $14) 39. Rd1 {[%emt 0:00:39]} Qe5 {[%emt 0:00:53]} (39... Rb7 $142 {White must now prevent ...Re7.} 40. Qf6 Re7 41. Qxd4 Rxd4) 40. Qg3 {[%emt 0:01:16]} Qe4+ {[%emt 0:01:12]} 41. Qf3 {[%emt 0:05:08]} Qxf3+ {[%emt 0:21:05]} 42. Kxf3 {[%emt 0:00:09][%mdl 4096] Endgame. [#] KRR-KRB} Rb7 $1 {[%emt 0:00:11] ...Re7 is the strong threat.} 43. a4 {[%emt 0:06:50]} Re7 {[%emt 0:00:39]} 44. Kf2 {[%emt 0:00:23] Prevents Re1} Re5 {[%emt 0:02:54]} 45. h4 {[%emt 0:22:54]} Re4 {[%emt 0:00:30]} 46. h5 $2 {[%emt 0:04:37]} (46. a5) 46... gxh5 {[%emt 0:02:11] And now ...h4 would win.} 47. a5 {[%emt 0:00:24]} h4 {[%emt 0:01:06]} 48. a6 {[%emt 0:00:05]} Re7 {[%emt 0:00:13]} 49. Be2 {[%emt 0:02:57]} Rxf7+ {[%emt 0:02:43]} 50. Kg2 {[%emt 0:00:31] [#]} h3+ $1 {[%emt 0:03:28]} 51. Kxh3 {[%emt 0:00:32]} (51. Kg3 h2) 51... Re7 {[%emt 0:00:38]} 52. Bf3 {[%emt 0:00:17]} Re1 {[%emt 0:00:26]} 53. Rxd2 {[%emt 0:01:28]} Rxd2 {[%emt 0:00:05]} 54. a7 {[%emt 0:00:03]} Ra2 {[%emt 0:00:17]} 55. a8=Q+ {[%emt 0:00:11]} Rxa8 {[%emt 0:00:04]} 56. Bxa8 {[%emt 0:00:03]} Re3+ {[%emt 0:00:04] Weighted Error Value: White=0.56/Black=0.20 (precise) .  Loses game:     	White=1     	---        Mistake:       	White=4     	Black=3      Inaccurate:     	White=4     	Black=3      OK:         	White=15    	Black=15     Best:        	White=4     	Black=4      Strong:       	---       	Black=1} 0-1

[Event "German Bundesliga 2023-24"]
[Site "Germany"]
[Date "2024.02.24"]
[Round "10.11"]
[White "McShane, Luke J"]
[Black "Baidetskyi, Valentin"]
[Result "1-0"]
[ECO "C07"]
[WhiteElo "2618"]
[BlackElo "2471"]
[Annotator "TA"]
[PlyCount "55"]
[EventDate "2023.10.20"]
[EventType "team-tourn"]
[EventCountry "GER"]
[SourceTitle "playchess.com"]
[Source "ChessBase"]
[SourceQuality "1"]
[TimeControl "40/6000+30:3000+30"]

{[%evp 13,55,12,13,16,22,-6,22,53,53,68,122,124,142,126,135,118,126,125,126,128,168,189,142,131,187,179,370,361,359,368,386,389,412,416,1774,1766,1282,1662,1095,627,6178,6183,4802,5289]} 1. e4 {[%emt 0:00:05]} e6 {[%emt 0:00:15]} 2. d4 {[%emt 0:00:10]} d5 {[%emt 0:00:09]} 3. Nd2 {[%emt 0:00:05]} c5 {[%emt 0:00:07]} 4. Ngf3 {[%emt 0:00:33]} cxd4 {[%emt 0:00:13]} 5. exd5 {[%emt 0:00:05]} Qxd5 {[%emt 0:00:07]} 6. Bc4 {[%emt 0:00:05]} Qd6 {[%emt 0:00:12]} 7. O-O {[%emt 0:00:10]} Nf6 {[%emt 0:00:11]} 8. Re1 {[%emt 0:00:07][%mdl 1024] White has compensation.} Nc6 {[%emt 0:01:47]} 9. Ne4 {[%emt 0:00:06]} Qb4 {[%emt 0:10:51]} 10. b3 {[%emt 0:13:17] The position is equal.} Be7 {[%emt 0:12:35]} 11. Bb2 {[%emt 0:00:52]} b5 {[%emt 0:02:15]} (11... Bd7 $14) 12. Bd3 $16 {[%emt 0:11:24][%cal Of3d4]} Bb7 {[%emt 0:08:10]} 13. a4 $1 {[%emt 0:02:33]} bxa4 {[%emt 0:00:51]} 14. Rxa4 {[%emt 0:00:35]} Qb6 {[%emt 0:00:04]} 15. Nxd4 {[%emt 0:00:51] White has more active pieces. The black rooks are passive.} Rd8 {[%emt 0:08:12]} 16. Qa1 {[%emt 0:15:34]} Nb4 {[%emt 0:17:56] [#]} 17. Nf5 $1 $36 {[%emt 0:10:02][%mdl 2560] White is really pushing.} Nxe4 {[%emt 0:07:05]} 18. Nxg7+ {[%emt 0:03:20]} Kf8 {[%emt 0:00:50]} 19. Bxe4 {[%emt 0:00:08][%cal Bd3e4,Be4b7,Bb7f3][%mdl 32]} Rd2 $2 {[%emt 0:00:55] [#]} (19... Bxe4 {might work better.} 20. Rxe4 Rg8) 20. Rxb4 $1 $18 {[%emt 0:16:53][%mdl 512]} Bxb4 {[%emt 0:14:19]} 21. Bxb7 {[%emt 0:04:48]} Rg8 {[%emt 0:05:58] [#]} 22. Bf3 {[%emt 0:08:38]} Rxc2 {[%emt 0:08:10]} (22... Qxf2+ 23. Kh1 Bd6 24. Bf6 $18) 23. Bd4 {[%emt 0:05:06]} Qa5 {[%emt 0:00:37] [#]} (23... Ra2 $142 24. Bxb6 (24. Qxa2 Qxd4 25. Rd1 Qf6 $18) 24... Rxa1 25. Rxa1 axb6) 24. Bc5+ $1 {[%emt 0:02:34][%mdl 512] White is clearly winning.} Qxc5 {[%emt 0:04:38] [#]} 25. Nxe6+ $1 {[%emt 0:00:33][%mdl 512]} fxe6 {[%emt 0:00:01]} 26. Qf6+ {[%emt 0:00:13]} Ke8 {[%emt 0:00:02]} 27. Qxe6+ {[%emt 0:01:03]} Kd8 {[%emt 0:00:28]} 28. Qxg8+ {[%emt 0:01:56] Weighted Error Value: White=0.01 (flawless) /Black=0.27 (precise) .  Mistake:       	---       	Black=3      Inaccurate:     	White=1     	Black=1      OK:         	White=6     	Black=5      Best:        	White=4     	Black=4      Brilliant:      	White=3     	---} 1-0

[Event "German Bundesliga 2023-24"]
[Site "Germany"]
[Date "2024.02.24"]
[Round "10.12"]
[White "Kindermann, Stefan"]
[Black "Areshchenko, Alexander"]
[Result "1/2-1/2"]
[ECO "A48"]
[WhiteElo "2444"]
[BlackElo "2625"]
[Annotator "TA"]
[PlyCount "41"]
[EventDate "2023.10.20"]
[EventType "team-tourn"]
[EventCountry "GER"]
[SourceTitle "playchess.com"]
[Source "ChessBase"]
[SourceQuality "1"]
[TimeControl "40/6000+30:3000+30"]

{[%evp 11,41,0,0,0,25,34,38,0,0,14,0,0,0,6,36,0,0,0,0,0,8,0,0,0,15,13,37,38,53,28,58,51]} 1. d4 {[%emt 0:00:04]} Nf6 {[%emt 0:00:04]} 2. Nf3 {[%emt 0:00:06]} g6 {[%emt 0:00:04]} 3. Bf4 {[%emt 0:00:18]} Bg7 {[%emt 0:01:27]} 4. c3 {[%emt 0:00:25]} O-O {[%emt 0:00:45]} 5. Nbd2 {[%emt 0:00:14]} d6 {[%emt 0:01:17]} 6. e4 {[%emt 0:01:36]} Nbd7 {[%emt 0:00:37]} 7. Be2 {[%emt 0:01:14]} Nh5 {[%emt 0:13:22]} 8. Be3 {[%emt 0:04:12]} e5 {[%emt 0:00:38]} 9. dxe5 {[%emt 0:03:21]} dxe5 {[%emt 0:02:17]} 10. O-O {[%emt 0:02:47]} Qe7 {[%emt 0:06:15]} 11. Re1 {[%emt 0:04:53]} Rd8 {[%emt 0:07:14]} 12. Qc2 {[%emt 0:01:28]} Nf8 {[%emt 0:11:22]} 13. Nc4 {[%emt 0:08:00]} Nf4 {[%emt 0:08:00]} 14. Bf1 {[%emt 0:00:50]} Bg4 {[%emt 0:02:42]} 15. Nfd2 {[%emt 0:02:22]} b6 {[%emt 0:05:35]} 16. b4 {[%emt 0:04:06]} h5 {[%emt 0:01:38]} 17. a4 {[%emt 0:03:45][%cal Ba2a4,Ba4a5][%mdl 32]} Bd7 {[%emt 0:09:18]} 18. a5 {[%emt 0:06:16]} g5 {[%emt 0:05:24][%cal Bg6g5,Bg5g4][%mdl 32]} 19. f3 {[%emt 0:03:14]} g4 {[%emt 0:03:44]} 20. Bf2 {[%emt 0:07:17]} Qg5 {[%emt 0:01:25]} 21. Ne3 {[%emt 0:08:45] Weighted Error Value: White=0.05 (flawless) /Black=0.09 (flawless) .  Inaccurate:     	White=1     	Black=2      OK:         	White=10    	Black=6      Best:        	---       	Black=1} 1/2-1/2

[Event "German Bundesliga 2023-24"]
[Site "Germany"]
[Date "2024.02.24"]
[Round "10.13"]
[White "Efimenko, Zahar"]
[Black "Zysk, Robert"]
[Result "1/2-1/2"]
[ECO "D73"]
[WhiteElo "2575"]
[BlackElo "2388"]
[Annotator "RC"]
[PlyCount "112"]
[EventDate "2023.10.20"]
[EventType "team-tourn"]
[EventCountry "GER"]
[SourceTitle "playchess.com"]
[Source "ChessBase"]
[SourceQuality "1"]
[TimeControl "40/6000+30:3000+30"]

1. Nf3 {[%emt 0:00:39]} Nf6 {[%emt 0:02:36]} 2. g3 {[%emt 0:00:15]} g6 {[%emt 0:03:38]} 3. Bg2 {[%emt 0:01:59]} Bg7 {[%emt 0:00:04]} 4. d4 {[%emt 0:00:12]} d5 {[%emt 0:00:53]} 5. O-O {[%emt 0:01:04]} O-O {[%emt 0:00:04]} 6. c4 {[%emt 0:03:19]} c6 {[%emt 0:14:08]} 7. cxd5 {[%emt 0:01:37]} cxd5 {[%emt 0:00:04]} 8. Ne5 {[%emt 0:00:04]} Nc6 {[%emt 0:06:29]} 9. Nxc6 {[%emt 0:02:03]} bxc6 {[%emt 0:00:03]} 10. Nc3 {[%emt 0:00:13]} Ba6 {[%emt 0:23:42]} 11. Re1 {[%emt 0:19:07]} Rc8 {[%emt 0:03:58]} 12. Bf4 {[%emt 0:07:51]} Qa5 {[%emt 0:04:53]} 13. Be5 {[%emt 0:11:07]} Rfd8 {[%emt 0:07:18]} 14. e3 {[%emt 0:01:24]} Nd7 {[%emt 0:10:33]} 15. Bxg7 {[%emt 0:01:19]} Kxg7 {[%emt 0:00:02]} 16. a3 {[%emt 0:02:05]} e6 {[%emt 0:05:08]} 17. Rc1 {[%emt 0:14:36]} Rb8 {[%emt 0:07:07]} 18. Na4 {[%emt 0:03:40]} Bb5 {[%emt 0:00:14]} 19. Nc5 {[%emt 0:01:01]} Bc4 {[%emt 0:05:07]} 20. Qa4 {[%emt 0:02:41]} Qxa4 {[%emt 0:05:56]} 21. Nxa4 {[%emt 0:00:12]} Rb3 {[%emt 0:01:34]} 22. Rc2 {[%emt 0:05:06]} Rdb8 {[%emt 0:03:55]} 23. Bf1 {[%emt 0:02:52]} Bb5 {[%emt 0:01:58]} 24. Bxb5 {[%emt 0:01:22]} cxb5 {[%emt 0:00:05]} 25. Nc5 {[%emt 0:01:10]} Nxc5 {[%emt 0:00:03]} 26. dxc5 {[%emt 0:00:03]} Rc8 {[%emt 0:00:07]} 27. Kf1 {[%emt 0:06:35]} Kf6 {[%emt 0:01:08]} 28. Rd1 {[%emt 0:01:38]} Ke7 {[%emt 0:00:53]} 29. Ke2 {[%emt 0:00:50]} a5 {[%emt 0:00:47]} 30. Rd4 {[%emt 0:02:50]} Kd7 {[%emt 0:00:46]} 31. Rd3 {[%emt 0:06:14]} Rxd3 {[%emt 0:00:15]} 32. Kxd3 {[%emt 0:00:03]} a4 {[%emt 0:00:26]} 33. Kd4 {[%emt 0:01:14]} f6 {[%emt 0:00:36]} 34. e4 {[%emt 0:00:12]} dxe4 {[%emt 0:01:11]} 35. Kxe4 {[%emt 0:00:03]} Ke7 {[%emt 0:00:40]} 36. f4 {[%emt 0:01:58]} f5+ {[%emt 0:00:52]} 37. Kd4 {[%emt 0:00:42]} h6 {[%emt 0:00:30]} 38. h4 {[%emt 0:01:21]} Rc7 {[%emt 0:00:53]} 39. Re2 {[%emt 0:02:45]} Rc6 {[%emt 0:00:39]} 40. Re5 {[%emt 0:00:53]} Rc8 {[%emt 0:00:37]} 41. Kc3 {[%emt 0:51:19]} g5 {[%emt 0:07:15]} 42. hxg5 {[%emt 0:00:00]} hxg5 {[%emt 0:00:23]} 43. fxg5 {[%emt 0:00:00]} Rg8 {[%emt 0:00:20]} 44. Kb4 {[%emt 0:00:00]} Rxg5 {[%emt 0:00:14]} 45. Re3 {[%emt 0:00:00]} Rg8 {[%emt 0:08:35]} 46. Rd3 {[%emt 0:00:00]} e5 {[%emt 0:01:17]} 47. c6 {[%emt 0:00:00]} e4 {[%emt 0:01:24]} 48. Rc3 {[%emt 0:00:00]} Kd6 {[%emt 0:04:27]} 49. Kxb5 {[%emt 0:00:00]} Kc7 {[%emt 0:02:51]} 50. Kxa4 {[%emt 0:00:00]} Re8 {[%emt 0:00:49]} 51. Re3 {[%emt 0:00:00]} Kxc6 {[%emt 0:13:38]} 52. Kb4 {[%emt 0:00:00]} Kd5 {[%emt 0:00:07]} 53. Kc3 {[%emt 0:00:00]} Rh8 {[%emt 0:08:19]} 54. a4 {[%emt 0:02:26]} Rh3 {[%emt 0:01:25]} 55. Kd2 {[%emt 0:01:47]} Kd4 {[%emt 0:01:53]} 56. Rb3 {[%emt 0:00:31]} Rh2+ {[%emt 0:00:57]} 1/2-1/2

[Event "German Bundesliga 2023-24"]
[Site "Germany"]
[Date "2024.02.24"]
[Round "10.14"]
[White "Pruijssers, Roeland"]
[Black "Zeller, Frank"]
[Result "1/2-1/2"]
[ECO "A01"]
[WhiteElo "2539"]
[BlackElo "2335"]
[Annotator "TA"]
[PlyCount "73"]
[EventDate "2023.10.20"]
[EventType "team-tourn"]
[EventCountry "GER"]
[SourceTitle "playchess.com"]
[Source "ChessBase"]
[SourceQuality "1"]
[TimeControl "40/6000+30:3000+30"]

{[%evp 9,73,-22,-11,-7,-6,-18,-8,-8,-15,-13,-8,-13,0,-9,0,-10,-10,-18,0,-6,5,4,13,13,28,0,13,0,35,39,68,57,81,70,90,79,99,53,48,0,0,0,0,0,0,0,0,0,0,0,0,0,0,0,0,-18,0,0,0,0,0,0,0,0,0,-148]} 1. b3 {[%emt 0:00:06]} g6 {[%emt 0:02:19]} 2. Bb2 {[%emt 0:00:35]} Nf6 {[%emt 0:00:04]} 3. Bxf6 {[%emt 0:00:42]} exf6 {[%emt 0:00:02]} 4. c4 {[%emt 0:00:14]} b6 {[%emt 0:08:54]} 5. Nc3 {[%emt 0:07:00]} Bb7 {[%emt 0:01:07]} 6. e3 {[%emt 0:00:40]} Bg7 {[%emt 0:00:47]} 7. Nf3 {[%emt 0:03:41]} O-O {[%emt 0:02:28]} 8. Be2 {[%emt 0:12:15]} d6 {[%emt 0:02:57]} 9. O-O {[%emt 0:01:10]} Nd7 {[%emt 0:00:13][%cal Bb8d7,Bd7f6,Bf6e4][%mdl 32]} 10. d4 {[%emt 0:06:10]} f5 {[%emt 0:01:39]} 11. Rc1 {[%emt 0:00:42]} Re8 {[%emt 0:02:02]} 12. Qc2 {[%emt 0:14:54]} Nf6 {[%emt 0:10:06]} 13. Nd2 {[%emt 0:06:32]} h5 {[%emt 0:11:59][%cal Bh7h5,Bh5h4,Bh4h3][%mdl 32]} 14. Bf3 {[%emt 0:04:26]} Bxf3 {[%emt 0:04:33]} 15. Nxf3 {[%emt 0:00:09]} Ne4 {[%emt 0:00:27]} 16. Nd5 {[%emt 0:10:34]} h4 {[%emt 0:08:41][%cal Oh4h3]} 17. Nd2 {[%emt 0:03:36]} h3 {[%emt 0:02:05]} 18. g3 {[%emt 0:00:32]} Bh6 {[%emt 0:08:02]} 19. Nxe4 {[%emt 0:08:57]} fxe4 {[%emt 0:00:53]} 20. f4 {[%emt 0:00:18] White is more active.} c6 {[%emt 0:07:01]} 21. Nc3 {[%emt 0:00:24]} Qd7 {[%emt 0:03:10]} 22. Qe2 {[%emt 0:01:36]} ({Much weaker is} 22. Nxe4 $6 Qe7 23. Nf2 Qxe3 $11) 22... Rac8 {[%emt 0:06:27]} 23. Rc2 {[%emt 0:05:45]} (23. d5 $16) 23... d5 $14 {[%emt 0:12:21]} 24. cxd5 {[%emt 0:00:21]} (24. Rf2 $14 {might be stronger.}) 24... cxd5 $11 {[%emt 0:00:16] The position is equal.} 25. Rfc1 {[%emt 0:00:06][%cal Oc3d5] [#] And now Nxd5! would win.} Bg7 {[%emt 0:01:04]} 26. Qb5 {[%emt 0:03:15]} Qg4 {[%emt 0:02:24]} 27. Qe2 {[%emt 0:02:58]} Qd7 {[%emt 0:00:21]} 28. Nd1 {[%emt 0:01:30]} Bf8 {[%emt 0:00:57]} 29. Nf2 {[%emt 0:00:50]} Ba3 $1 {[%emt 0:02:04]} 30. Rxc8 {[%emt 0:04:35]} Rxc8 {[%emt 0:00:10]} 31. Rc2 {[%emt 0:00:03]} Bc1 {[%emt 0:04:47] ...Rxc2 is the strong threat.} 32. Nd1 {[%emt 0:00:06]} Rc7 {[%emt 0:01:12]} 33. Rxc7 {[%emt 0:08:40]} Qxc7 {[%emt 0:00:01]} 34. f5 {[%emt 0:00:07]} gxf5 {[%emt 0:04:07]} 35. Qh5 {[%emt 0:00:45][%csl LRf5,LRh3]} Qc2 {[%emt 0:01:21][%csl Gh3][%cal Rc2g2] [#]} 36. Qg5+ {[%emt 0:00:07]} Kf8 {[%emt 0:00:22]} (36... Kh7 $11 37. Qxf5+ Kg8 38. Qg5+ Kh7 39. Qh4+ Kg6 40. Qg4+ Kf6 41. Qf4+ Kg7 42. Qg5+ Kh8 43. Qh6+ Kg8 44. Qg5+ Kf8 45. Qd8+ Kg7 46. Qg5+ Kh7 47. Qh5+ Kg7 48. Qg5+) 37. Qd8+ {[%emt 0:00:19] Weighted Error Value: White=0.06 (flawless) /Black=0.08 (flawless) .  Mistake:       	White=2     	Black=1      Inaccurate:     	White=1     	Black=2      OK:         	White=18    	Black=9      Best:        	White=2     	---        Strong:       	---       	Black=1} 1/2-1/2